Cogmind - Beta 9.1 @@@ ROGUE MODE // 2019.11.03 @ 13:42:29 Player: Cassie Rose Result: Destroyed by S-10 Pest with Light Assault Rifle Performance ------------- Evolutions (0) 0 Regions Visited (2) 400 Robots Destroyed (26) 130 Value Destroyed (546) 546 Prototype IDs (0) 0 Alien Tech Used (0) 0 Bonus (0) 0 TOTAL SCORE: 1076 Bonus ------- None Cogmind --------- Core Integrity 0/250 Matter 227/300 Energy 150/160 System Corruption 1% Temperature Cool (307) Location -10/Mines Parts ------- Power (1) Light Nuclear Core Propulsion (2) Flight Unit Utility (2) Large Storage Unit Weight Redist. System Weapon (2) Beam Cannon Bore Cannon Inventory (10) Ion Engine Visual Processing Unit Improved Sensor Array Improved Sensor Array Signal Interpreter Transport Network Coupler ECM Suite Light Armor Plating Grenade Launcher Peak State ------------ Power Light Nuclear Core Propulsion Flight Unit Flight Unit Utility Large Storage Unit Weight Redist. System Weapon EM Pulse Gun Bore Cannon Inventory Ion Engine Visual Processing Unit Improved Sensor Array Improved Sensor Array Signal Interpreter Transport Network Coupler ECM Suite Light Armor Plating Beam Cannon Grenade Launcher [Rating: 15] Favorites ----------- Power Ion Engine Engine Ion Engine Power Core Light Nuclear Core Propulsion Hover Unit Leg Aluminum Leg Hover Unit Hover Unit Flight Unit Flight Unit Utility Large Storage Unit Device Weight Redist. System Storage Large Storage Unit Processor Transport Network Coupler Weapon EM Pulse Gun Energy Gun EM Pulse Gun Energy Cannon Beam Cannon Ballistic Cannon Bore Cannon Launcher Grenade Launcher Build | -11 -10 -10 ------- Run | Scr Mat Min Slots Evolved . | . . . Power . | . . . Propulsion . | . . . Utility . | . . . Weapon . | . . . Parts Attached 28 | 5 18 5 Power 3 | 1 1 1 Engine 2 | 1 1 . Core 1 | . . 1 Reactor . | . . . Propulsion 10 | 2 6 2 Treads . | . . . Leg 3 | 2 1 . Wheel . | . . . Hover 3 | . 3 . Flight 4 | . 2 2 Utility 6 | 1 5 . Device 2 | . 2 . Storage 3 | 1 2 . Processor 1 | . 1 . Hackware . | . . . Protection . | . . . Artifact . | . . . Weapon 9 | 1 6 2 Energy Gun 5 | 1 4 . Energy Cannon 2 | . 1 1 Ballistic Gun . | . . . Ballistic Cannon 1 | . . 1 Launcher 1 | . 1 . Special Weapon . | . . . Impact Weapon . | . . . Slashing Weapon . | . . . Piercing Weapon . | . . . Special Melee Weapon . | . . . Unidentified Prototypes . | . . . Parts Lost 6 | . 3 3 Power . | . . . Propulsion 3 | . 2 1 Utility . | . . . Weapon 3 | . 1 2 Highest Loss Streak 2 | . 2 2 Average Slot Usage (%) 94 | . 92 98 Engine 12 | . 14 7 Core 1 | . . 6 Leg 5 | . 7 . Hover 12 | . 9 21 Flight 8 | . 10 5 Device 10 | . 9 14 Storage 14 | . 14 14 Processor 3 | . 4 . Energy Gun 20 | . 18 23 Energy Cannon 1 | . 1 . Naked Turns . | . . . Heaviest Build 32 | 11 26 32 Greatest Support 20 | 20 20 18 Greatest Overweight (x) 5 | . 5 2 Average Overweight (x) 1 | . 1 1 Largest Inventory Capacity 10 | 6 10 10 Average Capacity 9 | 5 9 10 Most Carried 10 | 4 10 10 Average Carried 8 | 1 8 9 Final Capacity 10 | 6 10 10 Final Carried 10 | 3 10 9 Class Distribution -------------------- 58% | Mutant 41% | Scavenger-Mutant Dominant Class ---------------- Scavenger-Mutant | -10/Materials Mutant | -10/Mines Resources | -11 -10 -10 ----------- Run | Scr Mat Min Matter Collected 445 | 250 140 55 Remotely . | . . . Salvage Created 790 | . 656 134 Parts 52 | . 36 16 Haulers Intercepted 2 | . 2 . Recyclers Shooed . | . . . Parts Field Recycled . | . . . Retrieved Matter . | . . . Parts Self-Destructed . | . . . Prevented . | . . . Kills | -11 -10 -10 ------- Run | Scr Mat Min Combat Hostiles Destroyed 20 | . 12 8 Guns 11 | . 6 5 Cannons 7 | . 6 1 AOE 2 | . . 2 Classes Destroyed 5 | . 5 . Worker 1 | . 1 . Hauler 2 | . 2 . Watcher 3 | . 3 . Swarmer 10 | . 3 7 Grunt 10 | . 9 1 Best Kill Streak 4 | . 4 3 Combat Bots Only 4 | . 4 3 Max Kills in Single Turn 2 | . 1 2 Gunslinging . | . . . Exploded 2 | . . 2 Melee . | . . . Uniques/NPCs Destroyed . | . . . Combat | -11 -10 -10 -------- Run | Scr Mat Min Damage Taken 928 | . 600 328 Core 256 | . 149 107 Absorbed by Shields . | . . . Core Remaining (%) 100 | 100 . . Volleys Fired 72 | . 50 22 Largest 2 | . 2 2 Hottest 117 | . 80 117 Shots Fired 100 | . 64 36 Gun 70 | . 44 26 Cannon 30 | . 20 10 Launcher . | . . . Special . | . . . Kinetic 9 | . . 9 Thermal 21 | . 20 1 Explosive . | . . . Electromagnetic 70 | . 44 26 Robot Hit Streak 6 | . 6 3 Robot Miss Streak 5 | . 5 5 Penetration Max . | . . . Secondary Targets 3 | . 2 1 Max Gunslinging Chain 1 | . 1 1 Shots Hit Robots 47 | . 35 12 Core Hits 33 | . 25 8 Critical Hits 1 | . . 1 Critical Kills 1 | . . 1 Critical Parts Destroyed . | . . . Melee Attacks . | . . . Impact . | . . . Slashing . | . . . Piercing . | . . . Sneak Attacks . | . . . Combat Hostiles . | . . . Follow-up Attacks . | . . . Damage Inflicted 1065 | . 804 261 Guns 576 | . 483 93 Cannons 241 | . 177 64 Explosions 247 | . 143 104 Melee . | . . . Ramming 1 | . 1 . Kinetic 64 | . . 64 Thermal 424 | . 320 104 Explosive . | . . . Electromagnetic 576 | . 483 93 Impact . | . . . Slashing . | . . . Piercing . | . . . Highest Corruption 1 | . 1 1 Average Corruption 1 | . 1 1 Corruption Purged . | . . . Overload Shots . | . . . Overflow Damage 30 | . 26 4 Projectiles . | . . . Explosions 30 | . 26 4 Melee . | . . . Knockbacks . | . . . Impact . | . . . Kinetic . | . . . Secondary . | . . . Self-Inflicted Damage 72 | . 37 35 Shots 2 | . 1 1 Rammed 1 | . 1 . Targets Rammed 1 | . 1 . Kicked . | . . . Crushed . | . . . Highest Temperature 307 | . 237 307 Average Temperature 73 | . 66 88 Received Heat Transfer 252 | . 246 6 Siege Activations . | . . . Robots Corrupted . | . . . Combat Hostiles . | . . . Parts Fried 3 | . 3 . Impact Corruptions . | . . . Robots Melted . | . . . Combat Hostiles . | . . . Parts Melted 1 | . . 1 Heat Transferred 720 | . 570 150 Parts Sabotaged . | . . . Parts Stolen . | . . . Parts Stripped . | . . . Power Chain Reactions 5 | . 3 2 Missiles Intercepted . | . . . Alert | -11 -10 -10 ------- Run | Scr Mat Min Peak Influence 140 | . 140 135 Average Influence 30 | . 33 25 Maximum Alert Level . | . . . Low Security (%) 100 | . . . Level 1 . | . . . Level 2 . | . . . Level 3 . | . . . Level 4 . | . . . Level 5 . | . . . High Security . | . . . Max Security . | . . . Squads Dispatched 3 | . 3 . Investigation 3 | . 3 . Extermination . | . . . Reinforcement . | . . . Assault . | . . . Garrison . | . . . Intercept . | . . . Construction Impeded . | . . . Haulers Reinforced . | . . . Stealth | -11 -10 -10 --------- Run | Scr Mat Min Distress Signals 1 | . 1 . Communications Jammed . | . . . Distress Signals . | . . . Times Spotted 30 | . 20 10 Peak Tracking Total 5 | . 5 3 Tactical Retreats 3 | . 2 1 Traps | -11 -10 -10 ------- Run | Scr Mat Min Traps Triggered 2 | . 2 . Indirectly . | . . . Trap Hack Attempts . | . . . Triggered . | . . . Disarmed . | . . . Reprogrammed . | . . . Reused . | . . . Traps Extracted . | . . . Installed . | . . . Triggered . | . . . Machines | -11 -10 -10 ---------- Run | Scr Mat Min Machines Disabled 4 | . 1 3 Max in Single Turn 2 | . 1 2 Machines Sabotaged . | . . . Garrisons Compromised . | . . . Overloaded Fab Kills . | . . . Fab Network Shutdowns . | . . . Hacking | -11 -10 -10 --------- Run | Scr Mat Min Machines Accessed 7 | . 7 . Terminals 7 | . 7 . Fabricators . | . . . Repair Stations . | . . . Recycling Units . | . . . Scanalyzers . | . . . Garrison Access . | . . . Total Hacks 20 | . 20 . Successful 12 | . 12 . Failed 8 | . 8 . Catastrophic 4 | . 4 . Database Lockouts . | . . . Manual 11 | . 11 . Terminals 20 | . 20 . Fabricators . | . . . Repair Stations . | . . . Recycling Units . | . . . Scanalyzers . | . . . Garrison Access . | . . . Terminal Hacks 10 | . 10 . Record 1 | . 1 . Robot Analysis 1 | . 1 . Level Access Points 1 | . 1 . Branch Access Points 1 | . 1 . Emergency Access Points 1 | . 1 . Alert Level 1 | . 1 . Unreport Threat 1 | . 1 . Locate Traps 1 | . 1 . Dispatch Records 1 | . 1 . Zone Layout 1 | . 1 . Fabricator Hacks . | . . . Repair Station Hacks . | . . . Recycling Unit Hacks . | . . . Scanalyzer . | . . . Garrison Access Hacks . | . . . Unauthorized Hacks 4 | . 4 . Terminals 2 | . 2 . Operators 2 | . 2 . Fabricators . | . . . Repair Stations . | . . . Recycling Units . | . . . Scanalyzers . | . . . Garrison Access . | . . . Data Cores Recovered . | . . . Used . | . . . Hacking Detections 7 | . 7 . Full Trace Events 2 | . 2 . Feedback Events . | . . . Feedback Blocked . | . . . Robot Schematics Acquired . | . . . Robots Built . | . . . Matter . | . . . Time . | . . . Total Robot Build Rating . | . . . Part Schematics Acquired . | . . . Parts Built . | . . . Matter . | . . . Time . | . . . Total Part Build Rating . | . . . Parts Repaired . | . . . Time . | . . . Parts Recycled . | . . . Recycled Matter . | . . . Retrieved Matter . | . . . Retrieved Components . | . . . Parts Scanalyzed . | . . . Part Schematics Acquired . | . . . Parts Damaged . | . . . Bothacking | -11 -10 -10 ------------ Run | Scr Mat Min Used RIF Installer . | . . . Robots Hacked . | . . . Non-combat . | . . . Combat . | . . . Robot Hacks Applied . | . . . Relay Couplers Released . | . . . Robots Rewired . | . . . Allies Hacked . | . . . Hacks Repelled . | . . . Allies | -11 -10 -10 -------- Run | Scr Mat Min Total Allies . | . . . Largest Group . | . . . Highest-Rated Group . | . . . Highest-Rated Ally . | . . . Total Orders . | . . . Ally Attacks . | . . . Total Damage . | . . . Kills . | . . . Allies Corrupted . | . . . Allies Melted . | . . . Intel | -11 -10 -10 ------- Run | Scr Mat Min Robot Analysis Total 1 | . 1 . Derelict Logs Recovered 1 | . . 1 Drone Launches . | . . . Drone Recoveries . | . . . Exploration | -11 -10 -10 ------------- Run | Scr Mat Min Turns Passed 1889 | 50 1296 543 Spaces Moved 1168 | 33 760 375 Core 2 | 2 . . Treads . | . . . Legs 233 | 31 202 . Wheels . | . . . Hover 718 | . 391 327 Flight 215 | . 167 48 Fastest Speed 50 | 50 116 116 Average Speed 134 | 115 139 124 Slowest Speed 450 | 120 450 200 Overloaded Moves . | . . . Propulsion Burnouts . | . . . Robots Hopped . | . . . Cave-ins Triggered . | . . . Exploration Rate (%) 51 | 2 96 56 Regions Visited 2 Branch Regions 1 Pre-discovered Areas . | . . . Known Exits Taken 1 | . 1 . Unknown Exits Taken 1 | 1 . . Scrap Searched 1 | . . 1 Spaces Dug . | . . . Terrain Destroyed 18 | . 13 5 Melee . | . . . Projectile 3 | . . 3 AOE 15 | . 13 2 Actions | -11 -10 -10 --------- Run | Scr Mat Min Total 1388 | 45 929 414 Wait 79 | . 70 9 Move 1166 | 32 759 375 Hop . | . . . Pick Up 27 | 8 19 . Fast Attach 6 | . 2 4 Attach 10 | 5 4 1 Detach . | . . . Swap 12 | . 12 . Drop 15 | . 12 3 Fire 72 | . 50 22 Melee . | . . . Ram 1 | . 1 . Kick . | . . . Crush . | . . . Escape Stasis . | . . . Rewire . | . . . Trap . | . . . Miscellaneous . | . . . Route ------- -11/Scrapyard -10/Materials (discovered 4 exits: *Mat x3 / *Min) -10/Mines (discovered 1 exit: *Mat) History --------- Turn | Location | Event 24 | -11/Scrapyard | Discovered new exit (range 16) 51 | -11/Scrapyard | Entered Materials 293 | -10/Materials | Discovered new exit (range 7) 308 | -10/Materials | Build established: Mutant 495 | -10/Materials | Discovered new exit (range 16) 555 | -10/Materials | Identified exit to Materials 693 | -10/Materials | Core integrity fell below 50% 815 | -10/Materials | Identified exit to Mines 1034 | -10/Materials | Build established: Scavenger-Mutant 1347 | -10/Materials | Entered Mines 1378 | -10/Mines | Met a Derelict bent on vengeance 1421 | -10/Mines | Build established: Mutant 1687 | -10/Mines | Discovered exit to Materials (range 10) 1720 | -10/Mines | Core integrity fell below 20% 1779 | -10/Mines | A weapon hastily lodged in a ceiling crevice suddenly fell to the ground 1890 | -10/Mines | Destroyed by S-10 Pest with Light Assault Rifle Last Messages --------------- 01767_ R-06 Scavenger collects Lgt. Assault Rifle. 01769_ K-01 Serf collects debris. 01769_ Dropped Hover Unit. 01771_ Acquired Flight Unit. 01772_ R-06 Scavenger collects Lgt. Ion Engine. 01773_ Acquired 20 matter. 01774_ K-01 Serf collects debris. 01775_ R-06 Scavenger collects Hover Unit. 01779_ A Bore Cannon hastily lodged in a ceiling crevice suddenly falls to the ground. 01781_ Acquired Bore Cannon. 01867_ S-10 Pest destroyed. 01876_ S-10 Pest suffers critical hit. 01876_ S-10 Pest destroyed. 01877_ EM Pulse Gun destroyed. 01879_ Flight Unit destroyed. 01879_ HV Slug penetrates Wall. 01885_ HV Slug penetrates S-10 Pest. 01888_ K-01 Serf collects debris. 01888_ HV Slug penetrates Earth. Map ----- +----------------------------------------------------+ | ?????????????????????????????????????# # | | ?????????????????????????????????????## | | ??????????????????????????????????????######## | | ?????????????????????????????????????????????## | | ??????????????????????????????????????????????## | | ???????????????????????????????????????????????# | | ???????????????????????????????????????????????? | | ???????????????????????????????????????????????? | | ???????????????????????????????????????????##### | | ?????????????????????? ???????????????????## # | | ?????????????????????? ???????????????????# | | ?????????????????????# ???????????????????## | | ????????????????????? ????????????????????#### | | ????????????????????? ???????????????????????## | | ????????????????????? ?????????####???????????# | | ????????????????????? ?????????# ##??????????? | | ????????????????????? #????????# #??????????? | | ?????????????????????#$#????????# #???????????? | | ?????????????????????# #???????## #????????????? | | ?????????????????????# #??????## #????????????? | | ?????????????????????# #?????## #????????????? | | ?????????????????????#=#????## ##????????????? | | ?????????????????????#%##??## ##?????????????# | | ?????????????????????#=; ?## #?????????????## | | ?????????????????????#s=### ##?????????????# | | ?????????????????????#=@k ##??####???????# | | ?????????????????????# #### ##??????## | | ?????????????????????######## #???????# | | ????????????????????????????# ### #?????### | | ????????????????????????????# #?## ##????## | | ????????????????????????????# #??#### #????## | | ????????????????????????????# #?????# #???## | | ????????????????????????????# ####### ##### | | ???????????????????????????# | | ???????????????????????????? ############### | | ???????????????????????????? ??????????????## | | ???????????????????????????? ???????????????## | | ???????????????????????????? ????????????????# | | ???????????????????????????? ????????????????# | | ???????????????????????????? ????????????????# | | ???????????????????????????? ????????????????# % | | ?????????????????????????????????????????????# | | ?????????????????????????????????????????????# = | | ?????????????????????????????????????????????### | | ???????????????????????????????????????????????? | | ???????????????????????????????????????????????? | | ???????????????????????????????????????????????? | | ???????????????????????????????????????????????? | | ???????????????????????????????????????????????? | | ???????????????????????????????????????????????? | +----------------------------------------------------+ Best States ------------- Heat Dissipation 25 Energy Generation 14 Energy Capacity 250 Matter Stores 300 Matter Capacity 300 Sight Range 16 Terrain Scan Density 10 ECM Strength 1 Additional Mass Support 6 Evasion (%) 40 Item Schematics ----------------- None Robot Schematics ------------------ None Fabricated ------------ Nothing Alien Tech Used ----------------- None Achievements -------------- None Challenges ------------ None Game ------ Seed ShieldSpikedMinigun Manual? 0 Play Time 00:34:16 Cumulative 9.8 hours Start 2019.11.03 @ 13:07:31 End 2019.11.03 @ 13:42:29 Sessions 1 Manual Loads 0 Difficulty Rogue Special Mode None Game No. 15 Rogue 15 Adventurer 0 Explorer 0 Win Type - Total 0 Types 0/0/0/0/0/0/0 Lore% 17 Gallery% 12 Achievement% 14 Wizard Run 0 Options --------- ASCII 0 Keyboard 0 Movement Mouse Keybinds 0 Fullscreen 1 Font 18/X11 Map View 76x50 Tactical HUD 1 Map Filters NONE Filters LOW_CONTRAST(13,24,33) Steam 1 RUN: 2e0b0042-fa68-4628-b5e8-845258709504